Cogmind - Beta 16 --- EXPLORER MODE // 2025.12.18 @ 11:04:12 Player: K.K.Y. Result: Destroyed by S-10 Pest with Light Assault Rifle Performance ------------- Evolutions (0) 0 Regions Visited (3) 600 Robots Destroyed (23) 115 Value Destroyed (436) 436 Prototype IDs (15) 300 Alien Tech Used (0) 0 Bonus (124) 124 TOTAL SCORE: 1575 Bonus ------- Follower Combat Kills 124 Cogmind --------- Core Integrity 0/250 Matter 300/300 Energy 100/100 System Corruption 0% Temperature Cool (0) Movement Core (550) Ox10 Location -10/Subcaves Parts ------- > --- POWER (1) -------- (None) > --- PROPULSION (2) --- (None) > --- UTILITY (3) ------ Large Storage Unit > --- WEAPON (2) ------- Particle Gun Subdweller Beam Cannon > --- INVENTORY (15) --- Heavy Ion Engine Light Deuterium Engine High-capacity Storage Unit Improved Terrain Scanner Core Shielding Improved Light Armor Plating Light EM Pulse Cannon Light EM Pulse Cannon Light EM Pulse Cannon Rocket Launcher Peak State ------------ > --- POWER ------------ Heavy Ion Engine > --- PROPULSION ------- Light Treads Light Treads > --- UTILITY ---------- Large Storage Unit Structural Scanner Core Shielding > --- WEAPON ----------- Particle Gun Light EM Pulse Cannon > --- INVENTORY -------- Heavy Ion Engine Light Deuterium Engine High-capacity Storage Unit Improved Terrain Scanner Core Shielding Improved Light Armor Plating Medium Laser Light EM Pulse Cannon Light EM Pulse Cannon Light EM Pulse Cannon Mining Laser [Rating: 14] Favorites ----------- Power Heavy Ion Engine Engine Heavy Ion Engine Propulsion Light Treads Treads Light Treads Utility Core Shielding Device Structural Scanner Storage Large Storage Unit Protection Core Shielding Weapon Medium Laser Energy Gun Medium Laser Energy Cannon Subdweller Beam Cannon Ballistic Cannon Light Cannon Special Weapon Mining Laser Build | -11 -10 -10 -10 ------- Run | Yrd Mat Min Sub Slots Evolved 1 | . 1 . . Power . | . . . . Propulsion . | . . . . Utility 1 | . 1 . . Weapon . | . . . . Parts Attached 17 | 5 7 3 2 Power 2 | 1 1 . . Engine 2 | 1 1 . . Core . | . . . . Reactor . | . . . . Propulsion 5 | 2 2 1 . Treads 5 | 2 2 1 . Leg . | . . . . Wheel . | . . . . Hover . | . . . . Flight . | . . . . Utility 3 | 1 2 . . Device 1 | . 1 . . Storage 1 | . 1 . . Processor . | . . . . Hackware . | . . . . Protection 1 | 1 . . . Artifact . | . . . . Weapon 7 | 1 2 2 2 Energy Gun 3 | 1 1 1 . Energy Cannon 2 | . . 1 1 Ballistic Gun . | . . . . Ballistic Cannon 1 | . 1 . . Launcher . | . . . . Special Weapon 1 | . . . 1 Impact Weapon . | . . . . Slashing Weapon . | . . . . Piercing Weapon . | . . . . Special Melee Weapon . | . . . . Unidentified Prototypes . | . . . . Parts Lost 8 | . . 2 6 Power 1 | . . . 1 Propulsion 2 | . . . 2 Utility 2 | . . . 2 Weapon 3 | . . 2 1 Highest Loss Streak 6 | . . 1 6 To Critical Strikes . | . . . . Average Backups 8 | 1 4 10 10 Power 1 | . . 1 2 Propulsion . | . . . . Utility 3 | 1 2 4 4 Weapon 3 | . 1 4 4 Tool/Special . | . . . . Unused Backups 14 | . 2 2 10 Power 3 | . 1 . 2 Propulsion 1 | . . 1 . Utility 6 | . 1 1 4 Weapon 4 | . . . 4 Tool/Special . | . . . . Average Slot Usage (%) 78 | . 83 99 51 Engine 8 | . 12 12 2 Treads 18 | . 25 25 6 Device 8 | . 9 12 2 Storage 9 | . 2 12 12 Protection 8 | . 12 12 2 Energy Gun 15 | . 16 16 13 Energy Cannon 5 | . . 7 9 Peak Build Rating 14 | 5 11 14 13 Average Rating 9 | 4 7 13 8 On Entrance 7 | . 5 11 13 Avg Prop Armor Cover (%) . | . . . . Naked Turns . | . . . . Heaviest Build 37 | 8 34 37 35 Greatest Support 40 | 40 40 40 40 Greatest Overweight (x) 10 | . . . 10 Average Overweight (x) . | . . . 5 Largest Inventory Capacity 15 | 5 15 15 15 Average Capacity 12 | 5 7 15 15 Most Carried 13 | 5 9 13 12 Average Carried 8 | 1 4 10 10 Final Capacity 15 | 5 15 15 15 Final Carried 11 | 3 9 11 10 Class Distribution -------------------- 100% | Hacker-Mutant Dominant Class ---------------- Hacker-Mutant | -10/Materials Hacker-Mutant | -10/Mines Hacker-Mutant | -10/Subcaves Resources | -11 -10 -10 -10 ----------- Run | Yrd Mat Min Sub Matter Collected 414 | 250 96 48 20 Remotely . | . . . . Salvage Created 741 | 171 231 238 101 Parts 42 | 12 19 6 5 Haulers Intercepted 1 | . 1 . . Recyclers Shooed 3 | 2 1 . . Parts Field Recycled . | . . . . Retrieved Matter . | . . . . Parts Self-Destructed . | . . . . Prevented . | . . . . Parts Restored . | . . . . Kills | -11 -10 -10 -10 ------- Run | Yrd Mat Min Sub Combat Hostiles Destroyed 23 | . 7 12 4 Guns 15 | . 6 6 3 Cannons 8 | . 1 6 1 Classes Destroyed 9 | 2 4 2 1 Tunneler 6 | 5 1 . . Hauler 1 | . 1 . . Recycler 1 | 1 . . . Watcher 2 | . 2 . . Swarmer 6 | . 6 . . Grunt 2 | . 1 1 . Demolisher 1 | . . 1 . Subdweller 4 | . . . 4 Assembled 10 | . . 10 . Best Kill Streak 3 | 2 3 2 2 Combat Bots Only 3 | . 3 2 2 Max Kills in Single Turn 1 | 1 1 1 1 Gunslinging . | . . . . Exploded . | . . . . Melee . | . . . . Uniques/NPCs Destroyed . | . . . . Combat | -11 -10 -10 -10 -------- Run | Yrd Mat Min Sub Hostile Shots Fired 157 | . 50 43 64 Missed 48 | . 16 9 23 Hits 109 | . 34 34 41 Melee 5 | . . 5 . Projectile 104 | . 34 29 41 AOE 12 | . . 12 . Damage Taken 1256 | . 220 539 497 Core 252 | . 37 75 140 Absorbed by Shields . | . . . . Redirected to Shielding 35 | . 6 14 15 Ignored by Resistances 767 | . 148 320 299 Core Remaining (%) 100 | 100 . . . Volleys Fired 116 | 19 33 37 27 Largest 2 | 1 2 2 2 Hottest 165 | 50 100 121 165 Shots Fired 182 | 19 43 66 54 Gun 136 | 19 37 44 36 Cannon 40 | . 6 22 12 Launcher . | . . . . Special 6 | . . . 6 Kinetic 6 | . 6 . . Thermal 154 | 19 37 44 54 Explosive . | . . . . Electromagnetic 22 | . . 22 . Robot Hit Streak 24 | 13 24 19 20 Robot Miss Streak 2 | 1 2 2 1 Penetration Max . | . . . . Secondary Targets . | . . . . Shots Hit Robots 138 | 16 34 52 36 Core Hits 57 | 7 14 28 8 Critical Kills . | . . . . Critical Parts Destroyed . | . . . . Critical Strikes 8 | 1 2 4 1 Burn 8 | 1 2 4 1 Melee Attacks . | . . . . Impact . | . . . . Slashing . | . . . . Piercing . | . . . . Sneak Attacks . | . . . . Combat Hostiles . | . . . . Follow-up Attacks . | . . . . Damage Inflicted 2035 | 202 454 819 560 Guns 1417 | 202 386 482 347 Cannons 546 | . 68 337 141 Explosions . | . . . . Melee . | . . . . Ramming . | . . . . Kinetic 68 | . 68 . . Thermal 1630 | 202 386 482 560 Explosive . | . . . . Electromagnetic 337 | . . 337 . Impact . | . . . . Slashing . | . . . . Piercing . | . . . . Highest Corruption . | . . . . Average Corruption . | . . . . Corruption Purged . | . . . . Corruption Blocked . | . . . . Overload Shots . | . . . . Overflow Damage . | . . . . Projectiles . | . . . . Explosions . | . . . . Melee . | . . . . Knockbacks 1 | . 1 . . Impact . | . . . . Kinetic 1 | . 1 . . Secondary . | . . . . Self-Inflicted Damage . | . . . . Shots . | . . . . Rammed . | . . . . Targets Rammed . | . . . . Kicked . | . . . . Crushed . | . . . . Highest Temperature 308 | 60 205 308 75 Average Temperature 79 | 19 69 108 22 Received Heat Transfer 260 | . 72 134 54 Effects 3 | . . 3 . Energy Bleed 1 | . . 1 . Interference 2 | . . 2 . Siege Activations . | . . . . Martial Activations . | . . . . Shielding Activations . | . . . . Robots Disrupted . | . . . . Combat Hostiles . | . . . . Robots Corrupted . | . . . . Combat Hostiles . | . . . . Parts Fried . | . . . . Impact Corruptions . | . . . . Robots Melted 1 | . 1 . . Combat Hostiles . | . . . . Parts Melted 6 | 2 3 . 1 Heat Transferred 4849 | 666 1295 1591 1297 Parts Sabotaged . | . . . . Parts Stolen . | . . . . Parts Stripped . | . . . . Power Chain Reactions . | . . . . Alert | -11 -10 -10 -10 ------- Run | Yrd Mat Min Sub Maximum Alert Level . | . . . . Low Security (%) 100 | 100 100 100 . Level 1 . | . . . . Level 2 . | . . . . Level 3 . | . . . . Level 4 . | . . . . Level 5 . | . . . . High Security . | . . . . Max Security . | . . . . Peak Influence 95 | 10 95 74 . Initial . | . . . . Average 8 | 1 14 3 . Influence Increases 520 | 30 321 154 15 Destroy 0b10 Robot/C 260 | . 140 120 . Destroy 0b10 Robot/NC 50 | 30 20 . . Destroy Leader 66 | . 36 30 . Allied During Kill 4 | . . 4 . Successful Hack 20 | . 20 . . Lose Combat Pursuer 120 | . 105 . 15 Influence Decreases 505 | 30 321 154 . Time Decay 476 | 30 321 125 . Lost Ally 29 | . . 29 . Squads Dispatched . | . . . . Investigation . | . . . . Extermination . | . . . . Reinforcement . | . . . . Assault . | . . . . Garrison . | . . . . Intercept . | . . . . Searches Triggered . | . . . . Construction Impeded . | . . . . Haulers Reinforced . | . . . . Active Scanning Responses . | . . . . Cargo Convoy Interrupts . | . . . . Stealth | -11 -10 -10 -10 --------- Run | Yrd Mat Min Sub Distress Signals 1 | . 1 . . Communications Jammed . | . . . . Distress Signals . | . . . . Times Spotted 46 | . 18 20 8 Peak Tracking Total 4 | . 4 3 2 Tactical Retreats 8 | . 7 . 1 Traps | -11 -10 -10 -10 ------- Run | Yrd Mat Min Sub Traps Triggered 2 | . 2 . . Indirectly . | . . . . Trap Hack Attempts . | . . . . Triggered . | . . . . Disarmed . | . . . . Reprogrammed . | . . . . Reused . | . . . . Traps Extracted . | . . . . Installed . | . . . . Triggered . | . . . . Machines | -11 -10 -10 -10 ---------- Run | Yrd Mat Min Sub Machines Disabled 1 | . . . 1 Max in Single Turn 1 | . . . 1 Machines Repaired . | . . . . Machines Dismantled . | . . . . Machines Sabotaged . | . . . . Overloaded Fab Kills . | . . . . Hacking | -11 -10 -10 -10 --------- Run | Yrd Mat Min Sub Machines Accessed 2 | . 1 . 1 Terminals 1 | . 1 . . Fabricators . | . . . . Repair Stations . | . . . . Recycling Units . | . . . . Scanalyzers . | . . . . Garrison Access . | . . . . Total Hacks 3 | . 2 . 1 Successful 3 | . 2 . 1 Failed . | . . . . Catastrophic . | . . . . Database Lockouts . | . . . . Manual . | . . . . Terminals 2 | . 2 . . Fabricators . | . . . . Repair Stations . | . . . . Recycling Units . | . . . . Scanalyzers . | . . . . Garrison Access . | . . . . Terminal Hacks 3 | . 2 . 1 Prototype ID Bank 1 | . 1 . . Zone Layout 1 | . 1 . . Proto ID Catalog 1 | . . . 1 Fabricator Hacks . | . . . . Repair Station Hacks . | . . . . Recycling Unit Hacks . | . . . . Scanalyzer . | . . . . Garrison Access Hacks . | . . . . Unauthorized Hacks . | . . . . Terminals . | . . . . Fabricators . | . . . . Repair Stations . | . . . . Recycling Units . | . . . . Scanalyzers . | . . . . Garrison Access . | . . . . Data Cores Recovered . | . . . . Used . | . . . . Hacking Detections 1 | . 1 . . Full Trace Events . | . . . . Feedback Events . | . . . . Feedback Blocked . | . . . . Robot Schematics Acquired . | . . . . Robots Built . | . . . . Authchips . | . . . . Time . | . . . . Total Robot Build Rating . | . . . . Part Schematics Acquired . | . . . . Parts Built . | . . . . Authchips . | . . . . Time . | . . . . Total Part Build Rating . | . . . . Part Studies Acquired . | . . . . Parts Repaired . | . . . . Time . | . . . . Parts Recycled . | . . . . Recycled Matter . | . . . . Retrieved Matter . | . . . . Retrieved Components . | . . . . Parts Scanalyzed . | . . . . Part Schematics Acquired . | . . . . Parts Damaged . | . . . . Bothacking | -11 -10 -10 -10 ------------ Run | Yrd Mat Min Sub Used RIF Installer . | . . . . Robots Hacked . | . . . . Non-combat . | . . . . Combat . | . . . . Robot Hacks Applied . | . . . . Relay Couplers Released . | . . . . Fabnet Peak Effective % . | . . . . Robots Rewired . | . . . . Allies Hacked . | . . . . Hacks Repelled . | . . . . Allies | -11 -10 -10 -10 -------- Run | Yrd Mat Min Sub Total Allies 3 | . . 3 . Largest Group 3 | . . 3 . Highest-Rated Group 40 | . . 40 . Highest-Rated Ally 16 | . . 16 . Total Orders . | . . . . Ally Attacks 32 | . . 32 . Total Damage 329 | . . 329 . Kills 9 | . . 9 . Allies Corrupted . | . . . . Allies Melted . | . . . . Intel | -11 -10 -10 -10 ------- Run | Yrd Mat Min Sub Active Infowar (turns) 1996 | . 948 1048 . Structural 1996 | . 948 1048 . Robot Analysis Total . | . . . . Derelict Logs Recovered . | . . . . Drone Launches . | . . . . Drone Recoveries . | . . . . Exploration | -11 -10 -10 -10 ------------- Run | Yrd Mat Min Sub Turns Passed 4127 | 183 1142 1477 1325 Spaces Moved 1893 | 95 642 822 334 Core 193 | 17 . . 176 Treads 1700 | 78 642 822 158 Legs . | . . . . Wheels . | . . . . Hover . | . . . . Flight . | . . . . Fastest Speed 50 | 50 160 160 160 Average Speed 195 | 140 160 160 364 Slowest Speed 550 | 160 160 160 550 Overloaded Moves . | . . . . Propulsion Burnouts . | . . . . Robots Hopped . | . . . . Potential Cave-ins . | . . . . Cave-ins Triggered . | . . . . Exploration Rate (%) 57 | 4 99 99 28 Regions Visited 3 Branch Regions 2 Pre-discovered Areas . | . . . . Known Exits Taken 3 | 1 1 1 . Unknown Exits Taken . | . . . . Scrap Searched 3 | . . . 3 Spaces Dug . | . . . . Terrain Destroyed 1 | . . . 1 Melee . | . . . . Projectile 1 | . . . 1 AOE . | . . . . Terrain Rammed . | . . . . Walls Destroyed . | . . . . Machines Disabled . | . . . . Actions | -11 -10 -10 -10 --------- Run | Yrd Mat Min Sub Total 2135 | 126 715 919 375 Wait 69 | . 16 45 8 Move 1890 | 94 641 821 334 Hop . | . . . . Pick Up 28 | 8 11 8 1 Fast Attach 4 | . 4 . . Attach 10 | 5 1 2 2 Detach 1 | . . . 1 Swap 6 | . 3 2 1 Drop 11 | . 6 4 1 Fire 116 | 19 33 37 27 Melee . | . . . . Ram . | . . . . Kick . | . . . . Crush . | . . . . Escape Stasis . | . . . . Rewire . | . . . . Trap . | . . . . Miscellaneous . | . . . . Route ------- -11/Scrapyard -10/Materials (discovered 6 exits: *Mat x3 / *Min x2 / *Sub) -10/Mines (discovered 4 exits: *Mat x2 / *Exi / *Sub) -10/Subcaves History --------- Turn | Location | Event 8 | -11/Scrapyard | Identified exit to Materials 8 | -11/Scrapyard | Discovered exit to Materials (range 15) 184 | -11/Scrapyard | Entered Materials 184 | -10/Materials | Evolved 1 slot: Utility x1 185 | -10/Materials | Met a group of wandering Federalists 312 | -10/Materials | Identified exit to Mines 312 | -10/Materials | Discovered exit to Mines (range 7) 318 | -10/Materials | Build established: Hacker-Mutant 447 | -10/Materials | Identified exit to Subcaves 447 | -10/Materials | Discovered exit to Subcaves (range 15) 538 | -10/Materials | Identified exit to Materials 538 | -10/Materials | Discovered exit to Materials (range 11) 591 | -10/Materials | Discovered exit to Materials (range 13) 697 | -10/Materials | Discovered exit to Mines (range 14) 1006 | -10/Materials | Discovered exit to Materials (range 16) 1326 | -10/Materials | Entered Mines 1331 | -10/Mines | Met a Derelict bent on vengeance 1333 | -10/Mines | Assisted by bots powering up and referring to "LRC-V3" 1359 | -10/Mines | Assembled infested the area 1660 | -10/Mines | Received a Rocket Launcher from a helpful Derelict 1918 | -10/Mines | Discovered exit to Materials (range 5) 1977 | -10/Mines | Discovered exit to Materials (range 7) 2020 | -10/Mines | Deemed a non-threat by the Exiles lab entrance 2020 | -10/Mines | Identified exit to Exiles 2020 | -10/Mines | Discovered exit to Exiles (range 5) 2792 | -10/Mines | Discovered exit to Subcaves (range 3) 2803 | -10/Mines | Entered Subcaves 2804 | -10/Subcaves | Approached by a straggling Scientist 2905 | -10/Subcaves | Visited 4L-MR0's lab 3075 | -10/Subcaves | Core integrity fell below 50% 3143 | -10/Subcaves | Lost 6 parts (1p2n2u1w) 3595 | -10/Subcaves | Core integrity fell below 20% 4128 | -10/Subcaves | Destroyed by S-10 Pest with Light Assault Rifle Last Messages --------------- here" 03585_ AX-WM6(R) destroyed. 03587_ Subatomizers dissect the Sub. Optics. 03604_ XE-34B(R) affixes Scrap Shield Fragment to Scrap Shield. 03611_ Disposable Heat Sink melted. 03611_ XE-34B(R) destroyed. 03612_ Subatomizers dissect the Sub. Laser. JH-762(c): "I think it's somewhere northeast of here" 03638_ Subatomizers dissect the Sub. Laser. JH-762(c): "I think it's somewhere northeast of here" 03677_ Subatomizers dissect the Sub. Laser. JH-762(c): "I think it's somewhere northeast of here" 03744_ Subatomizers dissect the Sub. Laser. JH-762(c): "I think it's somewhere north of here" Map ----- +----------------------------------------------------+ | ?????????????????????????????????????????????????? | | ?????????????????????????????????????????????????? | | ?????????????????????????????????????????????????? | | ?????????????????????????????????????????????????? | | ?????????????????????????????????????????????????? | | ?????????????????????????????????????????????????? | | ?????????????????????????????????????????????????? | | ?????????????????????????????????????????????????? | | ?????????????????????????????????????????????????? | | ?????????????????????????????????????????????????? | | ??????????????????????? ?????????????????????????? | | ?????????????????????# ?????????????????????????? | | ????????????????????## ?????????????????????????? | | ????????????????????# ##???????????????????????? | | ??????????????????### ###????????????????????? | | ??????????????????? #????????????????????? | | ??????????????????? ????????????????????? | | ???????????????????? #???????#????????????? | | ????????????????????# ###??## # ??????????? | | ????????????????????# ## ss ??????????? | | ???????????????????## ??????????? | | ??????????????????## ss ??????????? | | ??????????????????? #????????????? | | ??????????????????### #????????????? | | ?????????????????## #????????????? | | ?????????????????# @ #????????????? | | ?????????????????#### c ## #????????????? | | ????????????????????# #??? #???????????? | | ????????????????????# #????? #???????????? | | ????????????????????## ##?????? #???????????? | | ?????????????????????# #???????? #???????????? | | ????????????######??## #??????????#???????????? | | ???????????## #?# ###??????????????????????? | | ???????????# ## ##????????????????????????? | | ?????????### ##?###????????????????????? | | ?????????# ### #????????????????????? | | ?????????# #### #????????????????????? | | ????????## ##?###### ##???????????????????? | | #????#### #####?## ##??????????????????? | | #???## ### ##?????????????????? | | ???## #?????????????????? | | #### #?????????????????? | | # ### ##?????????????????? | | ## ##?## ##??????????????????? | | ######???#### ##???????????????????? | | #### #####???????????##### ##????????????????????? | | #??###???????????????????###?????????????????????? | | ?????????????????????????????????????????????????? | | ?????????????????????????????????????????????????? | | ?????????????????????????????????????????????????? | +----------------------------------------------------+ Best States ------------- Heat Dissipation 25 Energy Generation 14 Energy Capacity 280 Matter Stores 300 Matter Capacity 300 Sight Range 16 Terrain Scan Density 10 Resistance: KI 35 Resistance: TH 35 Resistance: EX 35 Resistance: EM 35 Resistance: I 35 Resistance: S 35 Resistance: P 35 Core Shielding 20 Evasion (%) 50 Recoil Reduction 2 Offensive Hacking 20 Item Schematics ----------------- None Robot Schematics ------------------ None Fabricated ------------ Nothing Repaired ---------- Nothing Studied --------- None Alien Tech Used ----------------- None Achievements -------------- None Challenges ------------ None Game ------ Seed RapidWeaponsThrower Manual? 0 Play Time 00:16:37 Cumulative 206.7 hours Start 2025.12.18 @ 10:49:47 End 2025.12.18 @ 11:04:12 Sessions 1 Manual Loads 0 Difficulty Explorer Special Mode None Game No. 315 Rogue 0 Adventurer 0 Explorer 315 Win Type - Total 0 Types 0/0/0/0/0/0/0/0/0/0 Lore% 71 Gallery% 68 Achievement% 53 Wizard Run 0 Options --------- Layout 1 ASCII 0 Keyboard 0 Movement Mouse Keybinds 0 Fullscreen 1 Font 24/Smallcaps Map View 50x35 Zoom Use 0% Tactical HUD 1 Map Filters NONE Filters NONE Steam 1 RUN: 7a391296-8c4f-46f1-b729-5ce0bb5cb7f3